bitfinex-derivatives/quotes_ETHF0:USTF0_20241008
["timestamp","ask_amount","ask_price","bid_price","bid_amount"]
[1728409421857,1.62472,2436.4,2436.3,0.41064]
[1728409422370,0.41066,2436.3,2436.2,0.41064]
[1728409424369,1.62474,2436.4,2436.3,0.41064]
[1728409429069,1.22694,2436.4,2436.3,0.41064]
[1728409431961,0.41064,2436.3,2436.2,3.62065]
[1728409432166,0.41064,2436.3,2436.2,3.62066]
[1728409432469,0.41069,2436.1,2436.0,3.62068]
[1728409433874,0.80375,2436.3,2436.2,0.41066]
[1728409434069,0.3931,2436.3,2436.0,4.23673]
[1728409434376,0.80375,2436.3,2436.2,0.41066]
[1728409436273,0.41065,2436.3,2436.2,3.62066]
[1728409436671,0.41065,2436.3,2436.2,3.21]
[1728409437564,0.41065,2436.3,2436.2,3.62066]
[1728409438776,0.41065,2436.3,2436.2,3.21]
[1728409438976,0.8163,2436.4,2435.7,0.4021]
[1728409439175,0.41068,2436.1,2436.0,0.41067]
[1728409440280,0.8163,2436.4,2436.0,0.41067]
[1728409440582,0.41066,2436.2,2436.1,3.21]
[1728409440777,0.41067,2436.1,2436.0,0.41068]
[1728409440972,0.41068,2436.1,2436.0,0.41067]
[1728409442377,0.41065,2436.3,2436.2,0.41065]
[1728409442576,0.41065,2436.3,2436.2,3.21]
[1728409442882,0.41065,2436.3,2436.2,3.62066]
[1728409445781,0.8163,2436.4,2436.3,0.41064]
[1728409445982,3.2078,2436.5,2436.4,0.41062]
[1728409446190,1.22699,2436.7,2436.6,0.41059]
[1728409446485,0.4168,2436.7,2436.6,0.41059]
[1728409447186,0.81015,2436.9,2436.8,0.41055]
[1728409447382,0.81015,2436.9,2436.8,3.62055]
[1728409449079,0.81015,2436.9,2436.8,3.21]
[1728409449286,0.41057,2436.8,2436.6,3.21]
[1728409449487,0.41057,2436.8,2436.7,0.41057]
[1728409450984,4.104,2436.8,2436.4,6.4178]
[1728409451185,0.4106,2436.6,2436.5,0.4106]
[1728409451586,1.02643,2436.7,2436.4,3.62061]
[1728409451787,0.4106,2436.5,2436.4,3.62061]
[1728409452086,1.02643,2436.7,2436.4,3.62061]
[1728409452087,0.4106,2436.6,2436.4,3.62061]
[1728409452486,1.02643,2436.7,2436.4,3.62061]
[1728409452694,0.4106,2436.6,2436.4,3.62061]
[1728409452992,0.4106,2436.6,2436.4,3.21]
[1728409453291,0.4106,2436.6,2436.4,3.62061]
[1728409453587,0.3996,2436.9,2436.4,3.21]
[1728409453894,0.81014,2436.9,2436.8,3.21]
[1728409454193,0.3996,2436.9,2436.8,3.62055]
[1728409454995,0.41051,2437.1,2436.9,0.41052]
[1728409455190,0.41051,2437.1,2437.0,3.21]
[1728409455497,0.41051,2437.1,2437.0,3.62052]
[1728409459894,0.41051,2437.1,2437.0,3.21]
[1728409460095,0.41051,2437.1,2436.8,0.3873]
[1728409460096,0.41054,2436.9,2436.8,3.62055]
[1728409460303,0.41057,2436.7,2436.6,3.2078]
[1728409460492,0.4106,2436.5,2436.4,3.21]
[1728409460892,0.4106,2436.5,2436.4,3.62062]
[1728409461601,0.4106,2436.5,2436.4,3.21]
[1728409462006,0.41064,2436.3,2436.2,3.21]
[1728409462306,0.41067,2436.2,2436.1,0.41067]
[1728409462600,1.4481,2436.4,2436.0,3.62068]
[1728409462601,0.41067,2436.1,2436.0,3.62068]
[1728409462996,0.41066,2436.2,2436.1,0.41067]
[1728409463196,0.41064,2436.3,2436.0,3.62068]
[1728409463397,0.41067,2436.2,2436.0,3.62068]
[1728409464299,0.41067,2436.1,2436.0,3.62068]
[1728409465100,0.41067,2436.1,2436.0,3.21]
[1728409466900,0.41067,2436.1,2435.8,3.21]
[1728409466901,0.41071,2435.9,2435.8,3.21]
[1728409467105,0.7894,2436.0,2435.8,3.21]
[1728409467399,0.3874,2436.3,2436.0,0.41069]
[1728409467400,0.41068,2436.1,2436.0,0.41069]
[1728409467801,0.4011,2436.2,2435.9,3.21]
[1728409468001,0.41069,2436.0,2435.9,3.21]
[1728409468394,0.41069,2436.0,2435.7,3.21]
[1728409468395,0.41073,2435.8,2435.7,3.21]
[1728409468594,0.3883,2435.9,2435.8,0.41072]
[1728409468807,0.4107,2436.0,2435.9,0.41071]
[1728409469006,0.79898,2436.1,2435.9,0.41071]
[1728409469207,0.79898,2436.1,2436.0,3.21]
[1728409469810,0.79898,2436.1,2436.0,3.62069]
[1728409470002,0.79898,2436.1,2436.0,3.21]
[1728409470307,0.79898,2436.1,2436.0,3.62069]
[1728409473409,0.81177,2436.2,2436.1,0.41067]
[1728409474001,0.41067,2436.1,2436.0,4.01568]
[1728409474207,0.41067,2436.1,2436.0,3.62068]
[1728409478309,0.81176,2436.2,2436.1,0.41067]
[1728409479210,0.398,2436.3,2436.0,3.21]
[1728409479515,0.398,2436.3,2436.2,3.62064]
[1728409479516,0.41064,2436.3,2436.2,3.62064]
[1728409480313,0.41064,2436.3,2436.2,3.21]
[1728409481510,4.23436,2436.4,2435.9,5.04127]
[1728409481511,4.23436,2436.4,2436.0,3.21]
[1728409481715,0.41068,2436.1,2436.0,3.21]
[1728409482215,1.20368,2436.1,2436.0,3.21]
[1728409483905,1.20368,2436.1,2435.6,0.4164]
[1728409483906,1.02681,2435.9,2435.6,3.21]
[1728409484112,1.02681,2435.9,2435.4,6.4178]
[1728409484113,0.41075,2435.7,2435.4,6.4178]
[1728409484313,0.4113,2435.8,2435.5,0.41077]
[1728409484616,0.4113,2435.8,2435.6,3.21]
[1728409484617,0.41075,2435.7,2435.6,3.21]
[1728409485517,0.41075,2435.7,2435.6,3.62076]
[1728409486021,0.41075,2435.7,2435.6,3.21]
[1728409486222,0.41075,2435.7,2435.6,3.62076]
[1728409486818,0.41075,2435.7,2435.6,3.21]
[1728409487719,0.4113,2435.8,2435.7,0.41074]
[1728409488027,0.4107,2436.0,2435.9,0.41071]
[1728409488326,5.02751,2436.1,2436.0,3.21]
[1728409488327,4.02748,2436.1,2436.0,3.21]
[1728409490330,3.6168,2436.1,2435.6,3.21]
[1728409490528,1.02675,2436.0,2435.6,3.21]
[1728409490826,0.41073,2435.8,2435.7,0.41073]
[1728409492028,0.41074,2435.7,2435.6,0.41074]
[1728409492225,0.41074,2435.7,2435.6,3.62074]
[1728409492528,0.41073,2435.8,2435.7,0.41074]
[1728409494621,0.41074,2435.7,2435.6,3.62074]
[1728409495323,0.41074,2435.8,2435.7,0.41073]
[1728409495930,1.42567,2435.9,2435.6,3.21]
[1728409496127,0.41074,2435.7,2435.6,3.62075]
[1728409497824,0.4207,2435.8,2435.6,3.21]
[1728409498033,0.83143,2435.8,2435.7,0.41074]
[1728409498225,0.41074,2435.7,2435.6,3.21]
[1728409498421,0.41074,2435.7,2435.6,3.62076]
[1728409500229,0.4207,2435.8,2435.7,0.41074]
[1728409500437,0.80962,2435.9,2435.8,0.41072]
[1728409500633,3.6168,2436.1,2436.0,0.41069]
[1728409501332,3.6168,2436.1,2435.9,0.3919]
[1728409501532,0.41069,2436.0,2435.9,0.4107]
[1728409501930,1.23308,2436.1,2436.0,0.41069]
[1728409502434,0.8224,2436.1,2436.0,1.89069]
[1728409502635,4.4413,2436.6,2436.0,1.48]
[1728409502837,0.8117,2436.3,2436.2,1.48]
[1728409503034,1.22234,2436.3,2436.2,1.48]
[1728409504233,1.22234,2436.3,2436.2,1.89066]
[1728409504434,0.8117,2436.3,2436.2,1.89066]
[1728409504944,0.8117,2436.3,2436.2,1.48]
[1728409505240,1.22234,2436.3,2436.2,1.89066]
[1728409506140,0.8117,2436.3,2436.2,1.89066]
[1728409506537,0.8117,2436.3,2436.2,3.61066]
[1728409508044,0.41061,2436.5,2436.4,0.41062]
[1728409508342,0.7766,2436.6,2436.5,0.4106]
[1728409509047,4.23405,2437.2,2436.5,7.304]
[1728409509246,0.41055,2436.8,2436.7,3.61056]
[1728409510744,0.41055,2436.8,2436.7,3.2]
[1728409511042,4.104,2436.8,2436.3,6.8288]
[1728409511244,0.4106,2436.6,2436.4,0.41061]
[1728409511440,0.3844,2436.5,2436.3,6.81843]
[1728409511636,0.41062,2436.4,2436.3,6.81844]
[1728409511945,0.79502,2436.5,2436.3,6.81843]
[1728409512144,0.41062,2436.4,2436.3,6.4078]
[1728409512448,0.79501,2436.5,2436.3,6.81844]
[1728409514138,0.79501,2436.5,2436.4,0.41062]
[1728409515452,0.79501,2436.5,2436.3,6.81843]
[1728409515649,0.79501,2436.5,2436.3,3.2078]
[1728409515650,0.41062,2436.4,2436.3,3.2078]
[1728409516046,4.51542,2436.4,2436.3,3.2078]
[1728409516947,0.41062,2436.4,2436.3,3.2078]
[1728409517949,0.41062,2436.4,2435.7,1.41605]
[1728409517950,1.0266,2436.3,2435.7,3.5892]
[1728409518153,0.41072,2435.9,2435.8,0.41071]
[1728409518342,0.41072,2435.8,2435.7,3.61073]
[1728409518549,1.62772,2435.8,2435.7,0.41073]
[1728409518746,1.217,2435.8,2435.7,0.41073]
[1728409519347,1.217,2435.8,2435.7,3.61073]
[1728409519747,1.62772,2435.8,2435.7,3.2]
[1728409519949,1.217,2435.8,2435.7,3.61074]
[1728409520949,1.62772,2435.8,2435.7,3.2]
[1728409521151,1.217,2435.8,2435.7,3.61074]
[1728409523352,1.217,2435.8,2435.7,3.2]
[1728409523558,1.62772,2435.8,2435.7,3.2]
[1728409523850,1.217,2435.8,2435.7,3.61074]
[1728409524052,1.217,2435.8,2435.6,6.4078]
[1728409524053,0.41074,2435.7,2435.6,6.4078]
[1728409525151,0.41074,2435.7,2435.6,6.81856]
[1728409525662,0.41074,2435.7,2435.6,6.4078]
[1728409525859,0.41074,2435.7,2435.6,3.2078]
[1728409526151,4.51634,2435.7,2435.6,3.2078]
[1728409526558,1.217,2435.8,2435.6,3.2078]
[1728409526755,1.217,2435.8,2435.7,3.61074]
[1728409526955,1.62772,2435.8,2435.7,3.61074]
[1728409527664,1.62772,2435.8,2435.7,3.2]
[1728409528052,1.217,2435.8,2435.5,3.61076]
[1728409528252,0.41075,2435.7,2435.6,0.41074]
[1728409528462,1.62773,2435.8,2435.7,0.41074]
[1728409530258,1.217,2435.8,2435.5,3.2]
[1728409530454,1.62773,2435.8,2435.7,0.41074]
[1728409533555,1.22363,2435.8,2435.7,0.41074]
[1728409534165,0.41074,2435.7,2435.6,0.79755]
[1728409534362,0.41076,2435.6,2435.3,3.5998]
[1728409534556,1.42282,2435.6,2435.2,3.2078]
[1728409534766,0.4108,2435.4,2435.3,0.4108]
[1728409535570,0.4108,2435.4,2435.3,0.41079]
[1728409535571,0.41079,2435.4,2435.3,0.41079]
[1728409535875,0.41081,2435.3,2435.2,3.61861]
[1728409536062,0.82351,2435.3,2435.2,3.61861]
[1728409536368,0.82351,2435.3,2434.8,3.61869]
[1728409536369,0.41086,2435.0,2434.8,3.61869]
[1728409536566,0.41087,2434.9,2434.8,3.2078]
[1728409536769,0.80787,2434.9,2434.8,3.2078]
[1728409538864,4.91507,2434.9,2434.8,3.2078]
[1728409540460,0.41098,2434.3,2434.2,10.31437]
[1728409541078,4.51898,2434.3,2434.2,10.31437]
[1728409541669,10.93878,2434.3,2434.2,10.31437]
[1728409543169,14.13878,2434.3,2434.2,10.31437]
[1728409543370,14.13878,2434.3,2433.4,5.40572]
[1728409543371,0.41112,2433.5,2433.4,0.41112]
[1728409543573,3.61892,2433.5,2433.4,0.41112]
[1728409544276,3.2078,2433.5,2433.2,3.2]
[1728409544473,0.41113,2433.4,2433.2,0.41115]
[1728409544675,3.2078,2433.5,2433.2,0.41115]
[1728409544980,0.41114,2433.3,2433.2,0.41115]
[1728409545270,3.2078,2433.5,2433.2,0.41115]
[1728409545570,3.2078,2433.5,2432.9,4.4285]
[1728409545571,6.4078,2433.5,2432.9,0.4076]
[1728409545873,6.4078,2433.5,2433.0,0.41119]
[1728409545874,0.41119,2433.1,2433.0,0.41119]
[1728409546472,3.2078,2433.2,2433.0,0.41119]
[1728409546668,3.61897,2433.2,2432.7,3.2]
[1728409546872,3.2078,2433.2,2433.1,0.41118]
[1728409547777,0.41118,2433.1,2432.9,3.6112]
[1728409547976,3.2078,2433.2,2432.9,3.2]
[1728409548172,3.2078,2433.2,2433.1,0.41118]
[1728409548476,3.61897,2433.2,2433.0,0.41119]
[1728409548778,3.2078,2433.2,2433.1,0.41118]
[1728409548976,3.2078,2433.2,2432.9,3.2]
[1728409549278,0.41115,2433.3,2432.9,3.2]
[1728409549677,3.2078,2433.5,2433.1,3.2]
[1728409549883,3.61891,2433.5,2433.3,0.41114]
[1728409550077,3.2078,2433.5,2433.3,0.41114]
[1728409550279,3.61892,2433.5,2433.3,0.41114]
[1728409550579,3.61892,2433.5,2433.1,3.59]
[1728409550777,3.2078,2433.5,2433.4,0.41113]
[1728409552380,3.2078,2433.5,2433.3,0.41113]
[1728409553073,3.2078,2433.5,2433.4,0.41113]
[1728409554980,0.4131,2433.8,2433.7,0.41108]
[1728409555176,0.4131,2433.8,2433.6,3.2]
[1728409555383,0.41108,2433.7,2433.5,0.3922]
[1728409555579,0.41108,2433.7,2433.5,0.8033]
[1728409555780,0.82417,2433.8,2433.5,0.8033]
[1728409555980,0.82417,2433.8,2433.5,0.3922]
[1728409556172,0.82417,2433.8,2433.6,0.41109]
[1728409556379,0.82417,2433.8,2433.5,0.8033]
[1728409556581,0.82417,2433.8,2433.6,0.41109]
[1728409557086,0.4111,2433.6,2433.4,3.61112]
[1728409557289,0.4131,2433.8,2433.4,3.61112]
[1728409557489,0.8067,2433.8,2433.4,3.2]
[1728409557691,0.8067,2433.8,2433.2,3.2]
[1728409557886,0.41109,2433.6,2433.2,0.41115]
[1728409558190,0.41111,2433.6,2433.3,0.41113]
[1728409558485,0.41112,2433.5,2433.3,0.41113]
[1728409558889,0.41111,2433.6,2433.1,0.39]
[1728409559183,0.41111,2433.6,2433.4,0.41112]
[1728409559782,0.8067,2433.8,2433.4,0.41112]
[1728409559982,0.4111,2433.6,2433.4,0.41112]
[1728409560181,1.83437,2433.8,2433.2,3.5973]
[1728409560486,0.4111,2433.6,2433.4,0.41112]
[1728409561487,0.4111,2433.6,2433.5,0.41111]
[1728409561682,3.61889,2433.7,2433.5,0.41111]
[1728409562080,3.61888,2433.7,2433.5,0.4111]
[1728409562287,0.41111,2433.6,2433.4,0.41112]
[1728409562587,0.41109,2433.6,2433.4,0.41112]
[1728409562788,3.2078,2433.7,2433.6,0.41109]
[1728409562987,3.61889,2433.7,2433.5,0.4111]
[1728409563483,3.61889,2433.7,2433.6,0.41109]
[1728409564185,3.2078,2433.7,2433.6,0.41109]
[1728409565287,3.2078,2433.7,2433.4,3.2]
[1728409565588,0.41109,2433.6,2433.2,4.6252]
[1728409565893,0.41109,2433.6,2433.1,0.39]
[1728409565894,0.41115,2433.3,2433.1,0.41117]
[1728409566090,2.05568,2433.4,2433.0,0.3922]
[1728409566297,0.41123,2432.8,2432.7,0.83564]
[1728409566487,3.2078,2433.1,2432.7,0.4244]
[1728409566789,3.2078,2433.1,2433.0,0.4112]
[1728409567181,0.80235,2433.3,2433.0,0.4112]
[1728409567479,0.80235,2433.3,2432.9,0.4055]
[1728409567687,0.3912,2433.3,2433.2,0.41116]
[1728409567887,0.80234,2433.3,2433.2,0.41116]
[1728409569388,0.3912,2433.3,2433.2,0.41116]
[1728409569589,0.80234,2433.3,2433.2,0.41116]
[1728409572991,0.41118,2433.2,2433.1,0.41116]
[1728409573393,0.41123,2432.9,2432.8,0.41122]
[1728409573693,0.41123,2432.9,2432.5,0.41126]
[1728409573694,0.41128,2432.6,2432.5,0.41126]
[1728409574685,0.41125,2432.7,2432.6,0.41125]
[1728409574889,1.02799,2433.1,2432.8,0.41121]
[1728409574890,0.41122,2432.9,2432.8,0.41121]
[1728409575084,0.83152,2432.9,2432.8,0.41121]
[1728409575590,0.4126,2433.0,2432.9,0.41121]
[1728409575995,0.4131,2433.1,2433.0,0.4112]
[1728409576188,0.82428,2433.1,2433.0,0.4112]
[1728409576388,0.4131,2433.1,2433.0,0.4112]
[1728409576697,0.81815,2433.3,2432.8,0.384]
[1728409576988,1.23125,2433.3,2433.2,0.41116]
[1728409577590,3.2078,2433.7,2433.2,1.02791]
[1728409577786,3.2078,2433.7,2433.3,3.2]
[1728409577986,0.4111,2433.6,2433.5,0.41111]
[1728409578285,3.2078,2433.7,2433.6,0.41109]
[1728409579085,3.61888,2433.7,2433.6,0.41109]
[1728409579288,3.2078,2433.7,2433.6,0.41109]
[1728409579488,1.62867,2433.8,2433.7,0.41108]
[1728409579489,1.2176,2433.8,2433.7,0.41108]
[1728409579693,0.8201,2433.8,2433.7,0.41108]
[1728409579992,1.23116,2433.8,2433.7,0.41108]
[1728409580194,1.23116,2433.8,2433.6,0.41108]
[1728409580390,1.23116,2433.8,2433.3,5.42896]
[1728409580391,0.8201,2433.8,2433.3,5.42896]
[1728409580591,0.8201,2433.8,2433.7,0.41108]
[1728409581093,1.23116,2433.8,2433.7,0.41108]
[1728409581398,0.8201,2433.8,2433.7,0.41108]
[1728409581783,0.4131,2433.8,2433.7,0.41108]
[1728409583098,0.3936,2434.0,2433.9,0.41104]
[1728409583290,0.3936,2434.0,2433.8,0.41105]
[1728409583291,0.41104,2433.9,2433.8,0.41105]
[1728409583491,0.80824,2434.0,2433.9,0.41104]
[1728409583686,0.80824,2434.0,2433.5,7.43558]
[1728409583996,0.3972,2434.0,2433.5,7.43558]
[1728409584189,0.3972,2434.0,2433.9,0.41104]
[1728409585995,0.41102,2434.1,2434.0,0.41103]
[1728409586291,0.41102,2434.1,2433.8,1.2079]
[1728409586292,0.4044,2434.2,2433.9,3.2]
[1728409586492,4.173,2434.4,2434.3,0.41098]
[1728409586685,1.43172,2434.6,2434.1,3.2]
[1728409586889,0.41097,2434.4,2434.2,0.41099]
[1728409587788,1.02738,2434.5,2434.1,0.411]
[1728409587994,1.02738,2434.5,2433.9,4.22762]
[1728409587995,0.41098,2434.3,2434.2,0.41099]
[1728409588688,0.41097,2434.4,2434.2,0.41099]
[1728409588891,0.41098,2434.3,2434.2,0.41099]
[1728409589498,0.41097,2434.4,2434.2,0.41099]
[1728409589986,0.4044,2434.6,2434.0,1.02757]
[1728409590190,0.81533,2434.6,2434.2,1.02748]
[1728409590393,0.81533,2434.6,2434.4,0.41095]
[1728409590697,0.81533,2434.6,2434.5,0.41094]
[1728409591093,0.4044,2434.6,2434.5,0.41094]
[1728409591697,0.4044,2434.6,2434.3,0.8126]
[1728409591896,0.41096,2434.4,2434.3,0.41096]
[1728409592093,0.41095,2434.5,2434.4,0.41095]
[1728409592993,0.4044,2434.6,2434.2,0.4014]
[1728409592994,0.81533,2434.6,2434.5,0.41094]
[1728409594000,0.4044,2434.6,2434.5,0.41094]
[1728409595496,0.81532,2434.6,2434.5,0.41094]
[1728409595705,0.41096,2434.5,2434.4,0.41095]
[1728409597307,0.81533,2434.6,2434.5,0.41094]
[1728409597505,0.4044,2434.6,2434.5,0.41094]
[1728409598394,0.81532,2434.6,2434.5,0.41094]
[1728409598600,1.43172,2434.6,2434.2,0.4014]
[1728409598808,0.41095,2434.5,2434.4,0.41095]
[1728409599012,0.41096,2434.4,2434.3,0.41096]
[1728409599305,0.41098,2434.3,2434.2,0.81238]
[1728409599506,0.41097,2434.4,2434.2,0.41098]
[1728409599706,0.41097,2434.4,2434.3,0.41098]
[1728409599905,0.4044,2434.6,2434.1,3.2]
[1728409600107,0.4044,2434.6,2434.4,0.41094]
[1728409600306,0.41094,2434.5,2434.4,0.41094]
[1728409601011,0.41095,2434.5,2434.4,0.41095]
[1728409601410,1.43172,2434.6,2434.1,4.22753]
[1728409601602,0.41096,2434.4,2434.3,0.41096]
[1728409602499,1.43172,2434.6,2434.1,4.22753]
[1728409602708,1.43172,2434.6,2434.4,0.41095]
[1728409602709,0.41095,2434.5,2434.4,0.41095]
[1728409603208,0.41097,2434.4,2434.3,0.41097]
[1728409603903,1.43172,2434.6,2434.4,0.41096]
[1728409603904,0.41096,2434.5,2434.4,0.41096]
[1728409604304,0.41096,2434.4,2434.3,0.41096]
[1728409604511,0.41095,2434.5,2434.4,0.41095]
[1728409605409,0.41096,2434.4,2434.3,0.41096]
[1728409605812,1.43172,2434.6,2434.1,4.22753]
[1728409606006,0.41095,2434.5,2434.4,0.41096]
[1728409606401,1.43172,2434.6,2434.1,4.22753]
[1728409606809,0.41095,2434.5,2434.4,0.41095]
[1728409608411,0.41096,2434.4,2434.3,0.41096]
[1728409608910,0.41096,2434.5,2434.4,0.41096]
[1728409610007,0.41096,2434.4,2434.3,0.41096]
[1728409610314,0.41096,2434.5,2434.1,4.22753]
[1728409610504,0.41096,2434.5,2434.4,0.41096]
[1728409610709,0.41094,2434.5,2434.4,0.41096]
[1728409611213,0.41096,2434.4,2434.3,0.41096]
[1728409611413,0.41095,2434.5,2434.4,0.41095]
[1728409611714,3.2078,2434.5,2434.1,3.2]
[1728409611907,0.411,2434.2,2434.1,0.411]
[1728409612105,4.23517,2434.5,2434.0,3.2078]
[1728409612307,0.41098,2434.3,2434.2,0.41098]
[1728409613910,0.411,2434.2,2434.1,0.411]
[1728409614611,0.7846,2434.3,2434.0,0.41102]
[1728409614612,0.41101,2434.1,2434.0,0.41102]
[1728409615012,0.386,2434.2,2433.9,3.59]
[1728409615013,0.797,2434.2,2434.1,0.41101]
[1728409615208,0.41101,2434.1,2434.0,0.41102]
[1728409615409,0.79701,2434.2,2434.1,0.41101]
[1728409615617,0.797,2434.2,2434.1,0.41101]
[1728409616212,0.41101,2434.1,2434.0,0.41101]
[1728409617313,0.79701,2434.2,2434.0,0.41103]
[1728409617517,0.79701,2434.2,2434.1,0.41101]
[1728409618215,0.79701,2434.2,2434.0,0.41102]
[1728409618216,0.41101,2434.1,2434.0,0.41102]
[1728409618412,0.41101,2434.1,2433.6,3.61889]
[1728409618413,0.41108,2433.7,2433.6,3.61889]
[1728409618614,4.23543,2433.9,2433.2,6.4078]
[1728409618813,1.62581,2433.6,2433.4,0.41112]
[1728409619116,0.41111,2433.5,2433.3,0.41113]
[1728409619415,1.2147,2433.6,2433.2,6.4078]
[1728409619623,1.2147,2433.6,2433.4,0.41112]
[1728409619824,0.41112,2433.5,2433.3,0.41113]
[1728409620012,0.41112,2433.5,2433.2,6.4078]
[1728409620216,1.2147,2433.6,2433.2,6.4078]
[1728409620412,0.41119,2433.1,2432.8,3.2]
[1728409620611,0.3833,2433.0,2432.9,0.41121]
[1728409620913,0.4246,2433.2,2432.8,3.2]
[1728409621118,0.4246,2433.2,2432.9,0.4154]
[1728409621318,0.41119,2433.1,2432.8,3.61122]
[1728409621519,0.41119,2433.1,2432.8,3.2]
[1728409621723,0.83577,2433.2,2432.9,0.4112]
[1728409622315,0.4246,2433.2,2432.9,0.4112]
[1728409622522,0.4246,2433.2,2432.8,3.2]
[1728409622814,4.0257,2433.6,2433.4,0.41112]
[1728409623023,3.6189,2433.6,2433.4,3.61112]
[1728409623321,3.2078,2433.6,2433.4,3.2]
[1728409623628,4.41089,2433.7,2433.5,0.41111]
[1728409623920,4.41089,2433.7,2433.4,3.61111]
[1728409623921,0.41109,2433.6,2433.4,3.61111]
[1728409624122,3.9998,2433.7,2433.4,3.2]
[1728409624629,0.4111,2433.6,2433.4,3.61111]
[1728409624819,0.4111,2433.6,2433.4,3.2]
[1728409625222,3.9998,2433.7,2433.4,3.2]
[1728409625422,0.4111,2433.6,2433.5,0.41111]
[1728409625923,0.41109,2433.6,2433.4,3.2]
[1728409626123,0.41109,2433.6,2433.5,0.41111]
[1728409626518,4.01338,2433.7,2433.6,0.41109]
[1728409626824,0.3945,2433.7,2433.6,0.41109]
[1728409627126,1.02754,2434.1,2433.6,0.41109]
[1728409627127,0.82523,2434.0,2433.8,0.41105]
[1728409627524,0.4142,2434.0,2433.7,0.8069]
[1728409627922,0.41105,2433.9,2433.8,0.41106]
[1728409628118,0.4142,2434.0,2433.7,0.8069]
[1728409628319,0.41101,2434.1,2433.8,3.2]
[1728409628618,0.41101,2434.1,2434.0,0.41103]
[1728409629827,0.411,2434.2,2433.9,0.41104]
[1728409630126,0.411,2434.2,2433.8,3.2]
[1728409630127,0.41103,2434.0,2433.8,3.2]
[1728409630425,0.41106,2433.8,2433.6,0.41108]
[1728409630619,1.02749,2434.2,2433.6,0.41108]
[1728409630620,0.41108,2433.7,2433.6,0.41108]
[1728409631024,1.43878,2433.7,2433.3,0.41114]
[1728409631223,0.41115,2433.3,2433.1,4.00537]
[1728409631417,0.41115,2433.3,2433.1,0.79757]
[1728409631725,0.83264,2433.4,2433.2,0.41116]
[1728409632328,0.41114,2433.3,2433.1,4.00537]
[1728409632627,0.41116,2433.3,2433.1,4.00537]
[1728409632927,0.41116,2433.3,2433.1,0.79757]
[1728409633127,0.41116,2433.2,2433.1,0.3864]
[1728409633325,0.41115,2433.3,2433.1,0.41117]
[1728409633721,1.44933,2433.4,2433.0,3.2]
[1728409633922,0.41118,2433.1,2433.0,0.41118]
[1728409634225,0.41118,2433.1,2432.9,0.41121]
[1728409634426,1.02787,2433.3,2432.8,3.2]
[1728409634726,6.8293,2433.4,2432.6,3.5833]
[1728409634925,1.02787,2433.3,2432.6,3.5833]
[1728409635123,1.02787,2433.3,2432.9,0.41121]
[1728409635124,0.4112,2433.0,2432.9,0.41121]
[1728409635323,0.41122,2432.9,2432.7,0.41125]
[1728409635530,0.41122,2432.9,2432.8,0.41123]
[1728409635726,0.4112,2433.0,2432.9,0.41121]
[1728409635934,1.44935,2433.4,2432.8,3.2]
[1728409636119,0.41116,2433.3,2433.1,0.41117]
[1728409636318,0.41119,2433.1,2432.9,0.4112]
[1728409636522,0.41117,2433.2,2432.9,0.41121]
[1728409636718,3.6293,2433.4,2432.8,3.2]
[1728409637030,0.4112,2433.0,2432.9,0.4112]
[1728409637625,4.65714,2433.4,2432.8,3.2]
[1728409637626,3.2078,2433.4,2432.8,3.2]
[1728409637833,0.207,2433.7,2433.3,6.4078]
[1728409638019,4.0338,2434.4,2432.9,20.54439231]
[1728409638020,1.23451,2434.2,2433.6,3.2078]
[1728409638225,0.4047,2434.3,2433.5,3.2]
[1728409638427,0.80702,2434.1,2433.7,0.41107]
[1728409638626,0.4128,2434.0,2433.7,0.41107]
[1728409638829,0.4128,2434.0,2433.7,3.2]
[1728409639027,3.61877,2434.4,2433.7,6.4078]
[1728409639227,3.61877,2434.4,2434.2,0.41099]
[1728409639228,3.2078,2434.4,2434.2,0.41099]
[1728409639433,3.2078,2434.4,2434.2,3.2]
[1728409639933,3.2078,2434.4,2434.2,3.61099]
[1728409641023,3.2078,2434.4,2434.3,0.41098]
[1728409641230,0.8088,2434.6,2434.2,3.2]
[1728409641429,0.8088,2434.6,2434.0,4.23536]
[1728409641430,0.8088,2434.6,2434.5,0.41094]
[1728409642030,0.4128,2434.6,2434.5,0.41094]
[1728409643434,0.4239,2435.0,2434.8,0.41088]
[1728409643629,0.83476,2435.0,2434.8,0.41088]
[1728409643829,4.94196,2435.0,2434.8,0.41088]
[1728409644130,4.94196,2435.0,2434.7,3.2]
[1728409644131,4.5311,2435.0,2434.9,0.41087]
[1728409644338,4.5311,2435.0,2434.7,3.2]
[1728409644339,0.83476,2435.0,2434.8,0.41089]
[1728409644636,0.4239,2435.0,2434.9,0.41087]
[1728409645039,4.5311,2435.0,2434.9,0.41087]
[1728409645941,4.94196,2435.0,2434.9,0.41087]
[1728409647345,0.41088,2434.9,2434.8,0.41088]
[1728409647551,0.41088,2434.9,2434.8,0.41089]
[1728409647552,0.41087,2434.9,2434.8,0.41089]
[1728409647755,4.51807,2434.9,2434.8,0.41089]
[1728409650151,0.41091,2434.7,2434.6,0.41091]